bitfinex-derivatives/quotes_BTCF0:USTF0_20230102
["timestamp","ask_amount","ask_price","bid_price","bid_amount"]
[1672619842202,0.7514,16604.0,16603.0,0.115]
[1672619842620,0.7514,16604.0,16603.0,0.1]
[1672619842837,0.7654,16604.0,16603.0,0.115]
[1672619843574,0.4647,16604.0,16603.0,0.115]
[1672619843785,0.7654,16604.0,16603.0,0.115]
[1672619853867,0.6151,16604.0,16603.0,0.115]
[1672619854595,0.6151,16604.0,16603.0,0.2053481]
[1672619861011,0.3144,16604.0,16603.0,0.2053481]
[1672619861226,0.6151,16604.0,16603.0,0.2053481]
[1672619861960,0.6151,16604.0,16603.0,0.115]
[1672619865741,0.3144,16604.0,16603.0,0.115]
[1672619865952,0.6151,16604.0,16603.0,0.115]
[1672619867836,0.3144,16604.0,16603.0,0.115]
[1672619868056,0.6151,16604.0,16603.0,0.115]
[1672619869420,0.6151,16604.0,16603.0,0.34087024]
[1672619869629,0.6151,16604.0,16603.0,0.25052214]
[1672619869630,0.4644,16604.0,16603.0,0.25052214]
[1672619870778,0.1637,16604.0,16603.0,0.25052214]
[1672619871211,0.4644,16604.0,16603.0,0.25052214]
[1672619873101,0.4644,16604.0,16603.0,0.34080935]
[1672619875089,0.4644,16604.0,16603.0,0.25052214]
[1672619875301,0.4644,16604.0,16603.0,0.34082647]
[1672619875938,0.4644,16604.0,16603.0,0.25052214]
[1672619878874,0.1637,16604.0,16603.0,0.79413743]
[1672619879092,0.4644,16604.0,16603.0,0.92968095]
[1672619879508,0.4644,16604.0,16603.0,0.43123387]
[1672619879820,0.4644,16604.0,16603.0,0.25054352]
[1672619883599,0.4642,16604.0,16603.0,0.25054352]
[1672619884440,0.4642,16604.0,16603.0,0.115]
[1672619888959,0.4642,16604.0,16603.0,0.20537327]
[1672619890648,0.4642,16604.0,16603.0,0.20521126]
[1672619892017,0.4642,16604.0,16603.0,0.92952492]
[1672619892221,0.4642,16604.0,16603.0,0.7939814]
[1672619894750,0.46401176,16604.0,16603.0,0.7939814]
[1672619895159,0.46401176,16604.0,16603.0,0.9295551]
[1672619895484,0.46401176,16604.0,16603.0,0.25041169]
[1672619896010,0.46401176,16604.0,16603.0,0.92955948]
[1672619896630,0.46401176,16604.0,16603.0,0.43110204]
[1672619897051,0.46401176,16604.0,16603.0,0.9295616]
[1672619899168,0.16331176,16604.0,16603.0,0.9295616]
[1672619899372,0.46401176,16604.0,16603.0,0.9295616]
[1672619899592,0.46401176,16604.0,16603.0,0.20522351]
[1672619900011,0.46401176,16604.0,16603.0,0.11483799]
[1672619900640,0.16331176,16604.0,16603.0,0.11483799]
[1672619900848,0.46401176,16604.0,16603.0,0.11483799]
[1672619902635,0.16331176,16604.0,16603.0,0.11483799]
[1672619902833,0.46401176,16604.0,16603.0,0.11483799]
[1672619907040,0.46401176,16604.0,16603.0,0.34079721]
[1672619909463,0.46401176,16604.0,16603.0,0.20522351]
[1672619910409,0.46401176,16604.0,16603.0,0.34079721]
[1672619911040,0.46401176,16604.0,16603.0,0.20522351]
[1672619911251,0.16331176,16604.0,16603.0,0.34079721]
[1672619911463,0.46401176,16604.0,16603.0,0.34079721]
[1672619912937,0.46401176,16604.0,16603.0,0.20522351]
[1672619913670,0.46511176,16604.0,16603.0,0.20522351]
[1672619914616,1.67141176,16604.0,16603.0,0.015]
[1672619914820,2.57561176,16604.0,16603.0,0.015]
[1672619915028,2.57471176,16604.0,16603.0,0.015]
[1672619916924,2.57471176,16604.0,16602.0,0.49843874]
[1672619917236,1.7563,16603.0,16602.0,0.49843874]
[1672619918496,0.1,16602.0,16598.0,0.3179]
[1672619918717,0.5999,16599.0,16598.0,0.3179]
[1672619919025,0.1,16598.0,16597.0,0.1]
[1672619919236,0.2507,16598.0,16597.0,0.1]
[1672619919862,0.5514,16598.0,16597.0,0.1]
[1672619920388,0.5654,16598.0,16597.0,0.1]
[1672619921549,0.4654,16598.0,16597.0,0.1]
[1672619922279,0.4654,16598.0,16597.0,0.19038552]
[1672619924596,0.4654,16598.0,16597.0,0.1]
[1672619925431,0.4654,16598.0,16596.0,0.1]
[1672619925756,0.1507,16597.0,16596.0,0.1]
[1672619926168,0.2507,16597.0,16596.0,0.1]
[1672619926378,0.2507,16597.0,16596.0,0.102]
[1672619926798,0.2647,16597.0,16596.0,0.102]
[1672619927961,0.1647,16597.0,16596.0,0.102]
[1672619930057,0.2647,16597.0,16596.0,0.102]
[1672619933097,0.5654,16597.0,16596.0,0.102]
[1672619940459,0.4654,16597.0,16596.0,0.102]
[1672619943823,0.4654,16597.0,16596.0,0.19238552]
[1672619944239,0.4654,16597.0,16596.0,0.102]
[1672619944873,0.4654,16597.0,16596.0,0.32795922]
[1672619945503,0.4654,16597.0,16596.0,0.2375737]
[1672619945819,0.44165545,16597.0,16596.0,0.91688929]
[1672619946027,0.40767944,16597.0,16596.0,0.91688929]
[1672619946231,0.40767944,16597.0,16596.0,0.78131559]
[1672619946658,0.40767944,16597.0,16596.0,0.91635896]
[1672619947075,0.40767944,16597.0,16596.0,0.78131559]
[1672619947292,0.40767944,16597.0,16596.0,0.91642135]
[1672619948338,0.40767944,16597.0,16596.0,0.41779611]
[1672619948755,0.40767944,16597.0,16596.0,0.28269035]
[1672619948969,0.40767944,16597.0,16596.0,0.7813224]
[1672619952855,0.40767944,16597.0,16596.0,0.82650706]
[1672619953280,0.10697944,16597.0,16596.0,0.82650706]
[1672619953696,0.40767944,16597.0,16596.0,0.82650706]
[1672619953906,0.4642,16597.0,16596.0,0.82650706]
[1672619954430,0.4642,16597.0,16596.0,1.00705862]
[1672619954846,0.4642,16597.0,16596.0,0.78118361]
[1672619955060,0.4642,16597.0,16596.0,1.00705862]
[1672619955803,0.4642,16597.0,16596.0,0.78118361]
[1672619957063,0.4642,16597.0,16596.0,1.00705862]
[1672619957904,0.4642,16597.0,16596.0,0.82650706]
[1672619958111,0.4642,16597.0,16596.0,1.00716614]
[1672619958431,0.4642,16597.0,16596.0,1.00716725]
[1672619959790,0.4642,16597.0,16596.0,0.82650706]
[1672619960423,0.1635,16597.0,16596.0,0.82650706]
[1672619960630,0.4642,16597.0,16596.0,0.82650706]
[1672619960846,0.4642,16597.0,16596.0,1.00717593]
[1672619963055,0.1635,16597.0,16596.0,1.00717593]
[1672619963373,0.4642,16597.0,16596.0,1.00717593]
[1672619964000,0.4653,16597.0,16596.0,1.00717593]
[1672619965150,0.4653,16597.0,16596.0,0.82650706]
[1672619965366,0.4653,16597.0,16596.0,1.00719169]
[1672619966727,0.4653,16597.0,16596.0,0.82650706]
[1672619966939,0.43536,16597.0,16596.0,1.00718849]
[1672619967259,0.43536,16597.0,16596.0,0.78131348]
[1672619968727,0.43536,16597.0,16596.0,1.00718849]
[1672619969152,0.43536,16597.0,16596.0,0.78131348]
[1672619969564,0.43536,16597.0,16596.0,0.9168214]
[1672619969777,0.43536,16597.0,16596.0,0.41818935]
[1672619970412,0.43536,16597.0,16596.0,0.23750792]
[1672619973460,0.43536,16597.0,16596.0,0.41818935]
[1672619973783,0.4505,16597.0,16596.0,0.9168406]
[1672619973995,0.4514,16597.0,16596.0,0.9168406]
[1672619974731,0.4514,16597.0,16596.0,0.78133268]
[1672619977873,0.4514,16597.0,16596.0,0.82652626]
[1672619982089,0.4514,16597.0,16596.0,0.78146159]
[1672619982931,0.4514,16597.0,16596.0,1.0073366]
[1672619983988,0.4514,16597.0,16596.0,0.82652626]
[1672619984199,0.4514,16597.0,16596.0,1.00734645]
[1672619989027,0.1507,16597.0,16596.0,1.00734645]
[1672619989235,0.4514,16597.0,16596.0,1.00734645]
[1672619989658,0.4514,16597.0,16596.0,0.82652626]
[1672619991340,0.1507,16597.0,16596.0,0.82652626]
[1672619991656,0.4514,16597.0,16596.0,0.82652626]
[1672620002487,0.42089633,16597.0,16596.0,0.82652626]
[1672620004802,0.42089633,16597.0,16596.0,0.78149428]
[1672620008592,0.42089633,16597.0,16596.0,1.00736929]
[1672620011223,0.42089633,16597.0,16596.0,0.78149428]
[1672620012154,0.42089633,16597.0,16596.0,1.00736929]
[1672620012475,0.42089633,16597.0,16596.0,0.78149428]
[1672620014258,0.42089633,16597.0,16596.0,0.22805082]
[1672620015424,0.42089633,16597.0,16596.0,0.09242293]
[1672620017522,0.42089633,16597.0,16596.0,0.002]
[1672620018782,0.42089633,16597.0,16596.0,0.102]
[1672620021939,0.42089633,16597.0,16596.0,0.19242293]
[1672620023523,0.42089633,16597.0,16596.0,0.102]
[1672620023832,0.42089633,16597.0,16596.0,0.19242293]
[1672620024460,0.12019633,16597.0,16596.0,0.19242293]
[1672620024679,0.52089633,16597.0,16596.0,0.19242293]
[1672620025303,0.52089633,16597.0,16596.0,0.102]
[1672620027617,0.22019633,16597.0,16596.0,0.102]
[1672620027830,0.52089633,16597.0,16596.0,0.102]
[1672620028039,0.52089633,16597.0,16596.0,0.19242293]
[1672620028239,0.42089633,16597.0,16596.0,0.19242293]
[1672620028450,0.42089633,16597.0,16596.0,0.32805082]
[1672620031506,0.42089633,16597.0,16596.0,0.23762789]
[1672620032657,0.42089633,16597.0,16596.0,0.41847092]
[1672620032867,0.42089633,16597.0,16596.0,0.23762789]
[1672620034343,0.12019633,16597.0,16596.0,0.23762789]
[1672620034553,0.42089633,16597.0,16596.0,0.23762789]
[1672620038118,0.12019633,16597.0,16596.0,0.23762789]
[1672620038335,0.42089633,16597.0,16596.0,0.23762789]
[1672620040559,0.12019633,16597.0,16596.0,0.23762789]
[1672620040868,0.42089633,16597.0,16596.0,0.23762789]
[1672620042765,0.42089633,16597.0,16596.0,0.41847092]
[1672620042964,0.42089633,16597.0,16596.0,0.23762789]
[1672620043392,0.42089633,16597.0,16596.0,0.41847092]
[1672620043599,0.42089633,16597.0,16596.0,0.23762789]
[1672620046864,0.42089633,16597.0,16596.0,0.23754699]
[1672620049596,0.42089633,16597.0,16596.0,0.41839002]
[1672620049795,0.42089633,16597.0,16596.0,0.32789647]
[1672620051389,0.12019633,16597.0,16596.0,0.32789647]
[1672620051590,0.42089633,16597.0,16596.0,0.32789647]
[1672620052744,0.42089633,16597.0,16596.0,0.23754699]
[1672620055270,0.42089633,16597.0,16596.0,0.32790045]
[1672620055481,0.42089633,16597.0,16596.0,0.32790401]
[1672620057254,0.42089633,16597.0,16596.0,0.23754699]
[1672620057895,0.42089633,16597.0,16596.0,0.32791673]
[1672620058315,0.42089633,16597.0,16596.0,0.23754699]
[1672620059789,0.12019633,16597.0,16596.0,0.23754699]
[1672620059994,0.42089633,16597.0,16596.0,0.23754699]
[1672620061889,0.42089633,16597.0,16596.0,0.3279381]
[1672620062412,0.42089633,16597.0,16596.0,0.23754699]
[1672620064725,0.42089633,16597.0,16596.0,0.19231792]
[1672620069667,0.52089633,16597.0,16596.0,0.19231792]
[1672620069876,0.42089633,16597.0,16596.0,0.32794581]
[1672620072394,0.42089633,16597.0,16596.0,0.23754699]
[1672620073139,0.42089633,16597.0,16596.0,0.91705972]
[1672620073140,0.451,16597.0,16596.0,0.91705972]
[1672620073342,0.451,16597.0,16596.0,0.82646381]
[1672620073555,0.4514,16597.0,16596.0,0.78140284]
[1672620075866,0.4514,16597.0,16596.0,1.00727785]
[1672620076809,0.4514,16597.0,16596.0,0.82646381]
[1672620079436,0.4514,16597.0,16596.0,1.00723745]
[1672620079651,0.4514,16597.0,16596.0,0.78136244]
[1672620084901,0.4514,16597.0,16596.0,1.00723745]
[1672620086476,0.4514,16597.0,16596.0,0.82646381]
[1672620086893,0.4514,16597.0,16596.0,1.00722545]
[1672620087427,0.4514,16597.0,16596.0,0.78135044]
[1672620089416,0.1507,16597.0,16596.0,0.78135044]
[1672620089624,0.4514,16597.0,16596.0,0.78135044]
[1672620094990,0.4514,16597.0,16596.0,0.82646381]
[1672620096043,0.4514,16597.0,16596.0,1.00720912]
[1672620096670,0.4514,16597.0,16596.0,0.82646381]
[1672620097093,0.4514,16597.0,16596.0,1.00721313]
[1672620097303,0.4514,16597.0,16596.0,0.82646381]
[1672620097622,0.4514,16597.0,16596.0,1.00721295]
[1672620098672,0.4514,16597.0,16596.0,0.78133794]
[1672620100876,0.4514,16597.0,16596.0,0.78114702]
[1672620102447,0.4514,16597.0,16596.0,0.91671643]
[1672620103077,0.4514,16597.0,16596.0,0.78114702]
[1672620105082,0.4514,16597.0,16596.0,0.23730828]
[1672620109808,0.4514,16597.0,16596.0,0.28247732]
[1672620110018,0.4514,16597.0,16596.0,0.78115291]
[1672620116653,0.4514,16597.0,16596.0,1.00702792]
[1672620117383,0.4514,16597.0,16596.0,0.78115291]
[1672620124954,0.4514,16597.0,16596.0,0.82627878]
[1672620125893,0.1507,16597.0,16596.0,0.82627878]
[1672620126106,0.4514,16597.0,16596.0,0.82627878]
[1672620135781,0.4514,16597.0,16596.0,0.60040377]
[1672620136725,0.4514,16597.0,16596.0,0.82640754]
[1672620139779,0.4514,16597.0,16596.0,1.00719581]
[1672620139985,0.4514,16597.0,16596.0,0.82640754]
[1672620140190,0.1507,16597.0,16596.0,0.82640754]
[1672620140397,0.1507,16597.0,16596.0,1.00718697]
[1672620140608,0.4514,16597.0,16596.0,0.82640754]
[1672620141241,0.4514,16597.0,16596.0,1.00718653]
[1672620143663,0.4514,16597.0,16596.0,0.78118276]
[1672620145453,0.1507,16597.0,16596.0,0.78118276]
[1672620145659,0.4514,16597.0,16596.0,0.78118276]
[1672620146079,0.1507,16597.0,16596.0,0.78118276]
[1672620146289,0.4514,16597.0,16596.0,0.78118276]
[1672620147445,0.4514,16597.0,16596.0,0.82640754]
[1672620148809,0.4514,16597.0,16596.0,0.82627943]
[1672620152173,0.4514,16597.0,16596.0,1.00707749]
[1672620152488,0.4514,16597.0,16596.0,0.78107372]
[1672620152705,0.4514,16597.0,16596.0,0.91667308]
[1672620153015,0.4514,16597.0,16596.0,0.32760171]
[1672620153644,0.4514,16597.0,16596.0,0.32760065]
[1672620153852,0.4514,16597.0,16596.0,0.23719953]
[1672620154790,0.4514,16597.0,16596.0,0.32758508]
[1672620155734,0.4514,16597.0,16596.0,0.23719953]
[1672620161517,0.1507,16597.0,16596.0,0.23719953]
[1672620161729,0.5514,16597.0,16596.0,0.23719953]
[1672620164044,0.5514,16597.0,16596.0,0.41799759]
[1672620164257,0.4514,16597.0,16596.0,0.41799759]
[1672620164469,0.4514,16597.0,16596.0,0.23719953]
[1672620166247,0.4514,16597.0,16596.0,0.32755668]
[1672620166463,0.4514,16597.0,16596.0,0.32755664]
[1672620166988,0.4514,16597.0,16596.0,0.23719953]
[1672620169820,0.4514,16597.0,16596.0,0.19195268]
[1672620170031,0.1507,16597.0,16596.0,0.19195268]
[1672620170348,0.5514,16597.0,16596.0,0.19195268]
[1672620171091,0.4514,16597.0,16596.0,0.19195268]
[1672620171293,0.4514,16597.0,16596.0,0.32755214]
[1672620174036,0.4514,16597.0,16596.0,0.19195268]
[1672620174236,0.4514,16597.0,16596.0,0.32755214]
[1672620175298,0.1507,16597.0,16596.0,0.32755214]
[1672620175505,0.4514,16597.0,16596.0,0.32755214]
[1672620177387,0.4514,16597.0,16596.0,0.41799759]
[1672620177598,0.4514,16597.0,16596.0,0.91666626]
[1672620179909,0.4514,16597.0,16596.0,0.41799759]
[1672620180129,0.4514,16597.0,16596.0,0.23719953]
[1672620180336,0.4514,16597.0,16596.0,0.41799759]
[1672620181066,0.4514,16597.0,16596.0,0.23719953]
[1672620181275,0.4514,16597.0,16596.0,0.41799759]
[1672620182009,0.4514,16597.0,16596.0,0.91667406]
[1672620182218,0.4514,16597.0,16596.0,0.91664252]
[1672620182429,0.4514,16597.0,16596.0,0.7810746]
[1672620184877,0.4514,16597.0,16596.0,0.91665292]
[1672620185071,0.4514,16597.0,16596.0,0.91665211]
[1672620185280,0.4514,16597.0,16596.0,0.7810746]
[1672620185708,0.4514,16597.0,16596.0,0.91664002]
[1672620185914,0.4514,16597.0,16596.0,0.41797504]
[1672620186230,0.4514,16597.0,16596.0,0.91664088]
[1672620186659,0.4514,16597.0,16596.0,0.91663947]
[1672620188225,0.4514,16597.0,16596.0,0.91666695]
[1672620188441,0.4514,16597.0,16596.0,0.78106256]
[1672620192332,0.4514,16597.0,16596.0,0.82626827]
[1672620194539,0.42116822,16597.0,16596.0,0.82626827]
[1672620194749,0.42116822,16597.0,16596.0,0.6002645]
[1672620194959,0.4509,16597.0,16596.0,0.6002645]
[1672620196753,0.4509,16597.0,16596.0,0.82620193]
[1672620197385,0.4509,16597.0,16596.0,0.6002645]
[1672620200001,0.4509,16597.0,16596.0,0.82611148]
[1672620202528,0.4509,16597.0,16596.0,1.00675666]
[1672620203267,0.4509,16597.0,16596.0,0.82611148]
[1672620203470,0.4509,16597.0,16596.0,1.0067564]
[1672620203681,0.4509,16597.0,16596.0,0.82611148]
[1672620203897,0.4512,16597.0,16596.0,0.82611148]
[1672620205166,0.1505,16597.0,16596.0,0.82611148]
[1672620206000,0.1505,16597.0,16596.0,1.00672116]
[1672620206212,0.1505,16597.0,16596.0,0.82611148]
[1672620206632,0.1505,16597.0,16596.0,1.00672636]
[1672620207364,0.1505,16597.0,16596.0,0.82611148]
[1672620212310,0.1505,16597.0,16596.0,0.82602655]
[1672620212725,0.12675673,16597.0,16596.0,0.6002645]
[1672620214514,0.4502,16598.0,16596.0,0.7506645]
[1672620214725,0.4502,16598.0,16597.0,0.72442543]
[1672620216830,0.4632,16598.0,16597.0,0.73842543]
[1672620217043,0.013,16598.0,16597.0,0.88912543]
[1672620217360,0.013,16598.0,16597.0,0.66336443]
[1672620218411,0.013,16598.0,16597.0,1.26536443]
[1672620218611,0.4514,16600.0,16598.0,0.1]
[1672620218825,0.43666516,16600.0,16599.0,0.18057292]
[1672620219145,0.43666516,16600.0,16599.0,0.67923735]
[1672620219871,0.44866516,16600.0,16599.0,0.70523735]
[1672620220610,0.012,16600.0,16599.0,0.89968057]
[1672620220927,0.253264,16602.0,16600.0,0.1]
[1672620221137,0.253264,16602.0,16601.0,0.46662584]
[1672620221882,0.253264,16602.0,16601.0,0.28609679]
[1672620222392,0.253264,16602.0,16601.0,0.1507]
[1672620222603,0.264264,16602.0,16601.0,0.1507]
[1672620223022,0.253264,16602.0,16601.0,0.1507]
[1672620223235,0.264264,16602.0,16601.0,0.1877]
[1672620224817,0.364264,16602.0,16601.0,0.1877]
[1672620225655,0.364264,16602.0,16601.0,0.037]
[1672620225656,0.514964,16602.0,16601.0,0.037]
[1672620227664,0.5624,16602.0,16601.0,0.037]
[1672620230186,0.5624,16602.0,16601.0,0.1272121]
[1672620231762,0.5624,16602.0,16601.0,0.037]
[1672620233017,0.5624,16602.0,16601.0,0.1272121]
[1672620233746,0.5624,16602.0,16601.0,0.037]
[1672620234386,0.5624,16602.0,16601.0,0.1272121]
[1672620237541,0.5624,16602.0,16601.0,0.037]
[1672620241644,0.4624,16602.0,16601.0,0.037]
[1672620242276,0.4624,16602.0,16601.0,0.1272121]
[1672620242907,0.4624,16602.0,16601.0,0.26260889]
[1672620243327,0.4624,16602.0,16601.0,0.1272121]
[1672620244171,0.4624,16602.0,16601.0,0.26260889]
[1672620245014,0.4624,16602.0,16601.0,0.17239679]
[1672620247002,0.4624,16602.0,16601.0,0.35292584]
[1672620247214,0.4624,16602.0,16601.0,0.27239679]
[1672620247741,0.4624,16602.0,16601.0,0.95142428]
[1672620248480,0.4624,16602.0,16601.0,0.45292584]
[1672620248905,0.1617,16602.0,16601.0,0.45292584]
[1672620249106,0.4624,16602.0,16601.0,0.27239679]
[1672620251848,0.4624,16602.0,16601.0,0.45292584]
[1672620252058,0.4624,16602.0,16601.0,0.95142964]
[1672620252479,0.4624,16602.0,16601.0,0.81603285]
[1672620252896,0.4624,16602.0,16601.0,0.95139732]
[1672620253107,0.4624,16602.0,16601.0,0.81603285]
[1672620253526,0.4624,16602.0,16601.0,0.95139699]
[1672620253742,0.43268,16602.0,16601.0,0.81603285]
[1672620254578,0.13198,16602.0,16601.0,0.81603285]
[1672620254788,0.43268,16602.0,16601.0,0.9514455]
[1672620255633,0.43268,16602.0,16601.0,0.81603285]
[1672620257727,0.43268,16602.0,16601.0,0.86116511]
[1672620259935,0.43268,16602.0,16601.0,0.81622866]
[1672620260356,0.40199312,16602.0,16601.0,0.81622866]
[1672620261946,0.10129312,16602.0,16601.0,0.81622866]
[1672620264041,0.1498,16602.0,16601.0,0.81622866]
[1672620267529,0.1498,16602.0,16601.0,0.95174872]
[1672620268674,0.1498,16602.0,16601.0,0.95174354]
[1672620268890,0.1498,16602.0,16601.0,0.45323974]
[1672620269628,0.1498,16602.0,16601.0,0.27251488]
[1672620270253,0.1498,16602.0,16601.0,0.22735162]
[1672620272350,0.1498,16602.0,16601.0,0.3628665]
[1672620272781,0.1498,16602.0,16601.0,0.22735162]
[1672620274037,0.1507,16602.0,16601.0,0.22735162]
[1672620275094,0.1507,16602.0,16601.0,0.31772486]
[1672620275408,0.1507,16602.0,16601.0,0.81624238]
[1672620275625,0.4514,16602.0,16601.0,0.81624238]
[1672620278865,0.4514,16602.0,16601.0,1.04190369]
[1672620279078,0.4514,16602.0,16601.0,0.81624238]
[1672620282555,0.4514,16602.0,16601.0,0.36291653]
[1672620284660,0.1507,16602.0,16601.0,0.36291653]
[1672620284871,0.4514,16602.0,16601.0,0.36291653]
[1672620285601,0.1507,16602.0,16601.0,0.36291653]
[1672620285813,0.4514,16602.0,16601.0,0.36291653]
[1672620287173,0.4514,16602.0,16601.0,0.27254992]
[1672620288444,0.1507,16602.0,16601.0,0.27254992]
[1672620290113,0.1507,16602.0,16601.0,0.86115353]
[1672620291590,0.1507,16602.0,16601.0,1.04187817]
[1672620292220,0.1507,16602.0,16601.0,0.86115353]
[1672620295907,0.4514,16602.0,16601.0,0.86115353]
[1672620296434,0.3007,16602.0,16601.0,0.86115353]
[1672620296647,0.451,16602.0,16601.0,0.86115353]
[1672620297268,0.3007,16602.0,16601.0,0.86115353]
[1672620297477,0.4502,16602.0,16601.0,0.86115353]
[1672620300323,0.4513,16602.0,16601.0,0.86115353]
[1672620305048,0.4513,16602.0,16601.0,0.95176935]
[1672620305784,0.4513,16602.0,16601.0,0.81622201]
[1672620308422,0.4513,16602.0,16601.0,0.95176753]
[1672620309357,0.4513,16602.0,16601.0,0.95169929]
[1672620310735,0.1506,16602.0,16601.0,0.95169929]
[1672620312415,0.1506,16602.0,16601.0,0.45320707]
[1672620312621,0.1506,16602.0,16601.0,0.86108002]
[1672620318732,0.120239,16602.0,16601.0,0.86108002]
[1672620320097,0.120239,16602.0,16601.0,0.81615756]
[1672620323354,0.120239,16602.0,16601.0,0.95171829]
[1672620323560,0.120239,16602.0,16601.0,0.81615756]
[1672620325454,0.12015978,16602.0,16601.0,0.81615756]
[1672620327663,0.12015978,16602.0,16601.0,0.63541871]
[1672620329559,0.12015978,16602.0,16601.0,0.86138101]
[1672620332719,0.12015978,16602.0,16601.0,0.63541871]
[1672620332931,0.12015978,16602.0,16601.0,0.86140008]
[1672620333450,0.12015978,16602.0,16601.0,0.63541871]
[1672620335975,0.12015978,16602.0,16601.0,0.90646872]
[1672620336389,0.12015978,16602.0,16601.0,0.63541871]
[1672620337117,0.12015978,16602.0,16601.0,0.90646872]
[1672620339339,0.09642388,16602.0,16601.0,0.90646872]
[1672620340497,0.09642388,16602.0,16601.0,0.63541871]
[1672620342590,0.09642388,16602.0,16601.0,0.45325786]
[1672620342804,0.09642388,16602.0,16601.0,0.95173907]
[1672620343331,0.09642388,16602.0,16601.0,1.17768614]
[1672620343650,0.09642388,16602.0,16601.0,0.86136004]
[1672620343856,0.39712388,16602.0,16601.0,0.86136004]
[1672620344071,0.451,16602.0,16601.0,0.86136004]
[1672620345226,0.451,16602.0,16601.0,1.04209607]
[1672620345643,0.451,16602.0,16601.0,0.86136004]
[1672620345851,0.451,16602.0,16601.0,1.0420969]
[1672620346065,0.451,16602.0,16601.0,0.86136004]
[1672620346799,0.451,16602.0,16601.0,0.81613732]
[1672620347220,0.451,16602.0,16601.0,1.04208439]
[1672620349852,0.451,16602.0,16601.0,0.86136004]
[1672620350058,0.451,16602.0,16601.0,1.13241005]
[1672620350261,0.451,16602.0,16601.0,0.63541297]
[1672620350476,0.451,16602.0,16601.0,0.90646298]
[1672620351115,0.1503,16602.0,16601.0,0.90646298]
[1672620352479,0.1503,16602.0,16601.0,0.63541297]
[1672620353739,0.2503,16602.0,16601.0,0.63541297]
[1672620353954,0.2498,16602.0,16601.0,0.63541297]
[1672620354997,0.1498,16602.0,16601.0,0.63541297]
[1672620356581,0.1498,16602.0,16601.0,0.90646298]
[1672620357420,0.1498,16602.0,16601.0,0.63541297]
[1672620357626,0.1498,16602.0,16601.0,0.86130336]
[1672620358149,0.1498,16602.0,16601.0,1.04201601]
[1672620358677,0.12010548,16602.0,16601.0,1.04201601]
[1672620359830,0.12010548,16602.0,16601.0,0.36282537]
[1672620360255,0.12010548,16602.0,16601.0,0.27246547]
[1672620360460,0.12010548,16602.0,16601.0,0.36282018]
[1672620362663,0.12010548,16602.0,16601.0,0.81613638]
[1672620364028,0.1507,16602.0,16601.0,1.04202677]
[1672620365083,0.1507,16602.0,16601.0,0.63542373]
[1672620365718,0.1507,16602.0,16601.0,0.86130142]
[1672620368976,0.1507,16602.0,16601.0,0.63542373]
[1672620370865,0.1507,16602.0,16601.0,0.86129607]
[1672620371713,0.1507,16602.0,16601.0,0.63542373]
[1672620371925,0.1507,16602.0,16601.0,0.86130161]
[1672620372138,0.1507,16602.0,16601.0,0.81613351]
[1672620372453,0.1507,16602.0,16601.0,0.86130161]
[1672620372658,0.1507,16602.0,16601.0,0.81610459]
[1672620372861,0.1507,16602.0,16601.0,1.04198247]
[1672620373282,0.1507,16602.0,16601.0,1.04198102]
[1672620373913,0.1503,16602.0,16601.0,1.04198102]
[1672620374122,0.1503,16602.0,16601.0,0.81610314]
[1672620375709,0.451,16602.0,16601.0,0.81610314]
[1672620378227,0.1503,16602.0,16601.0,0.81610314]
[1672620379073,0.451,16602.0,16601.0,0.81610314]
[1672620380334,0.451,16602.0,16601.0,0.86130161]
[1672620381069,0.1503,16602.0,16601.0,0.86130161]
[1672620381280,0.451,16602.0,16601.0,0.86130161]
[1672620385169,0.451,16602.0,16601.0,1.04196837]
[1672620385799,0.451,16602.0,16601.0,0.86130161]
[1672620387692,0.451,16602.0,16601.0,1.0419746]
[1672620389056,0.451,16602.0,16601.0,0.81609672]
[1672620391467,0.451,16602.0,16601.0,0.86130161]
[1672620393262,0.451,16602.0,16601.0,0.81612307]
[1672620395356,0.451,16602.0,16601.0,1.04200095]
[1672620395570,0.451,16602.0,16601.0,0.86130161]
[1672620396517,0.451,16602.0,16601.0,1.04200473]
[1672620396735,0.451,16602.0,16601.0,0.86130161]
[1672620396942,0.1503,16602.0,16601.0,0.86130161]
[1672620399668,0.1503,16602.0,16601.0,1.04203423]
[1672620400726,0.1503,16602.0,16601.0,0.86130161]
[1672620402608,0.1503,16602.0,16601.0,0.81615392]
[1672620404088,0.1503,16602.0,16601.0,0.95170165]
[1672620404399,0.1503,16602.0,16601.0,0.81615392]
[1672620408923,0.1503,16602.0,16601.0,0.27249652]
[1672620409137,0.2503,16602.0,16601.0,0.27249652]
[1672620409875,0.2503,16602.0,16601.0,0.81615411]
[1672620410182,0.1503,16602.0,16601.0,0.8613018]
[1672620413340,0.1503,16602.0,16601.0,0.8611414]
[1672620417753,0.1503,16602.0,16601.0,0.27236668]
[1672620419122,0.1503,16602.0,16601.0,0.95164859]
[1672620419638,0.1503,16602.0,16601.0,0.27236668]
[1672620421214,0.1503,16602.0,16601.0,0.45316044]
[1672620421640,0.1503,16602.0,16601.0,0.81604681]
[1672620421953,0.1503,16602.0,16601.0,0.95163366]
[1672620422165,0.1503,16602.0,16601.0,0.81604681]
[1672620422697,0.1503,16602.0,16601.0,0.95163213]
[1672620422909,0.1503,16602.0,16601.0,0.81604681]
[1672620423540,0.1503,16602.0,16601.0,0.95163338]
[1672620425006,0.1503,16602.0,16601.0,0.81604681]
[1672620425221,0.1503,16602.0,16601.0,0.63525305]
[1672620426801,0.1503,16602.0,16601.0,0.86122392]
[1672620428377,0.1503,16602.0,16601.0,1.04201006]
[1672620428378,0.2503,16602.0,16601.0,1.04201006]
[1672620429212,0.2503,16602.0,16601.0,0.86122392]
[1672620430061,0.551,16602.0,16601.0,0.86122392]
[1672620430275,0.451,16602.0,16601.0,0.86122392]
[1672620440150,0.451,16602.0,16601.0,1.04201161]
[1672620440574,0.451,16602.0,16601.0,0.81604074]
[1672620441195,0.451,16602.0,16601.0,1.04201161]
[1672620441622,0.451,16602.0,16601.0,0.81604074]
[1672620442140,0.451,16602.0,16601.0,1.04201161]
[1672620443723,0.451,16602.0,16601.0,0.81604074]
[1672620444358,0.451,16602.0,16601.0,1.04201161]
[1672620445410,0.451,16602.0,16601.0,1.22279568]